fUSD/lending_fUSD_20250502
["ID","MTS","AMOUNT","RATE_DAILY","PERIOD"]
[359647786,1746216644471,-450.0,0.00019721,2]
[359647787,1746216644482,-450.0,0.00019721,2]
[359647788,1746216644492,-502.73,0.00019721,2]
[359647789,1746216644502,-450.0,0.00019721,2]
[359647790,1746216644511,-1148.63,0.00019721,2]
[359647791,1746216644520,-450.0,0.00019721,2]
[359647792,1746216644530,-450.0,0.00019721,2]
[359647793,1746216644540,-402.27436238,0.00019721,2]
[359647794,1746216644549,-450.0,0.00019721,2]
[359647795,1746216644559,-450.0,0.00019721,2]
[359647796,1746216644568,-1193.52,0.00019721,2]
[359647797,1746216644577,-450.0,0.00019721,2]
[359647798,1746216644587,-746.61,0.00019721,2]
[359647799,1746216644596,-450.0,0.00019721,2]
[359647800,1746216644605,-450.0,0.00019721,2]
[359647801,1746216644614,-599.32,0.00019721,2]
[359647802,1746216644623,-450.0,0.00019721,2]
[359647803,1746216644633,-500.0,0.00019721,2]
[359647804,1746216644642,-150.38905316,0.00019721,2]
[359647805,1746216644652,-150.0,0.00019721,2]
[359647806,1746216644661,-441.0,0.00019721,2]
[359647807,1746216644670,-455.29,0.00019721,2]
[359647808,1746216644679,-154.18898431,0.00019721,2]
[359647809,1746216644688,-500.0,0.00019721,2]
[359647810,1746216644698,-500.0,0.00019721,2]
[359647811,1746216644707,-500.0,0.00019721,2]
[359647812,1746216644717,-500.0,0.00019721,2]
[359647813,1746216644726,-450.0,0.00019721,2]
[359647814,1746216644736,-450.0,0.00019721,2]
[359647815,1746216644746,-450.0,0.00019721,2]
[359647816,1746216644756,-450.0,0.00019721,2]
[359647817,1746216644767,-453.35,0.00019721,2]
[359647818,1746216644779,-450.0,0.00019721,2]
[359647819,1746216644788,-500.0,0.00019721,2]
[359647820,1746216644797,-155.27013893,0.00019721,2]
[359647821,1746216644808,-500.0,0.00019721,2]
[359647822,1746216644821,-151.09399251,0.00019721,2]
[359647823,1746216644830,-150.96083992,0.00019721,2]
[359647824,1746216644840,-150.79274051,0.00019721,2]
[359647825,1746216644850,-150.97981124,0.00019721,2]
[359647826,1746216644861,-500.0,0.00019721,2]
[359647827,1746216644870,-150.0,0.00019721,2]
[359647828,1746216644881,-500.0,0.00019721,2]
[359647829,1746216644891,-150.0,0.00019721,2]
[359647830,1746216644903,-437.0,0.00019721,2]
[359647831,1746216644913,-154.54925283,0.00019721,2]
[359647832,1746216644923,-500.0,0.00019721,2]
[359647833,1746216644934,-150.0,0.00019721,2]
[359647834,1746216644943,-500.0,0.00019721,2]
[359647835,1746216644952,-150.0,0.00019722,2]
[359647836,1746216644961,-150.0,0.00019728,2]
[359647837,1746216644971,-1000.0,0.00019733,2]
[359647838,1746216644980,-150.0,0.00019736,2]
[359647839,1746216644991,-150.0,0.00019739,2]
[359647840,1746216645001,-150.0,0.00019744,2]
[359647841,1746216645011,-1530.19154769,0.00019744,2]
[359647842,1746216645022,-1329.95598886,0.00019744,2]
[359647843,1746216645032,-150.0,0.0001975,2]
[359647844,1746216645042,-150.0,0.00019757,2]
[359647845,1746216645051,-150.0,0.00019771,2]
[359647846,1746216645061,-165.99958587,0.00019773,2]
[359647847,1746216645071,-505.12152298,0.00019773,2]
[359647848,1746216645080,-500.0,0.00019773,2]
[359647849,1746216645090,-500.0,0.00019773,2]
[359647850,1746216645099,-368.87036061,0.00019773,2]
[359647851,1746216645108,-500.0,0.00019773,2]
[359647852,1746216645117,-162.15598987,0.00019773,2]
[359647853,1746216645127,-500.0,0.00019773,2]
[359647854,1746216645137,-500.0,0.00019773,2]
[359647855,1746216645147,-500.0,0.00019773,2]
[359647856,1746216645157,-500.0,0.00019773,2]
[359647857,1746216645166,-500.0,0.00019773,2]
[359647858,1746216645176,-650.0,0.00019773,2]
[359647859,1746216645186,-500.0,0.00019773,2]
[359647860,1746216645196,-515.34803,0.00019773,2]
[359647861,1746216645206,-1530.19154769,0.00019776,2]
[359647862,1746216645216,-1329.95598886,0.00019776,2]
[359647863,1746216645226,-150.0,0.00019776,2]
[359647864,1746216645236,-150.0,0.00019777,2]
[359647865,1746216645246,-150.0,0.00019782,2]
[359647866,1746216645256,-150.0,0.00019783,2]
[359647867,1746216645266,-150.0,0.00019786,2]
[359647868,1746216645276,-150.0,0.00019795,2]
[359647869,1746216645287,-880.2620348,0.00019799,2]
[359647870,1746216645298,-150.0,0.00019799,2]
[359647871,1746216645308,-1530.19154769,0.00019807,2]
[359647872,1746216645319,-1329.95598886,0.00019807,2]
[359647873,1746216645330,-150.0,0.00019811,2]
[359647874,1746216645340,-150.0,0.00019815,2]
[359647875,1746216645350,-150.0,0.00019817,2]
[359647876,1746216645360,-150.0,0.00019822,2]
[359647877,1746216645370,-150.0,0.00019825,2]
[359647878,1746216645380,-500.0,0.00019829,2]
[359647879,1746216645390,-1530.19154769,0.00019838,2]
[359647880,1746216645400,-1329.95598886,0.00019838,2]
[359647881,1746216645411,-500.0,0.0001984,2]
[359647882,1746216645422,-2000.0,0.0001984,2]
[359647883,1746216645432,-200.0,0.0001984,2]
[359647884,1746216645441,-151.04397921,0.00019848,2]
[359647885,1746216645453,-150.0,0.00019848,2]
[359647886,1746216645462,-150.0,0.00019857,2]
[359647887,1746216645472,-150.0,0.0001986,2]
[359647888,1746216645482,-1530.19154769,0.00019869,2]
[359647889,1746216645493,-1329.95598886,0.00019869,2]
[359647890,1746216645503,-150.0,0.00019869,2]
[359647891,1746216645513,-151.0,0.00019875,2]
[359647892,1746216645523,-151.0,0.00019875,2]
[359647893,1746216645533,-151.0,0.00019876,2]
[359647894,1746216645545,-151.0,0.00019876,2]
[359647895,1746216645555,-151.0,0.00019876,2]
[359647896,1746216645565,-150.0,0.00019878,2]
[359647897,1746216645575,-3695.479,0.0001988,2]
[359647898,1746216645585,-528.954,0.0001988,2]
[359647899,1746216645595,-6753.0,0.0001988,2]
[359647900,1746216645606,-153.0,0.0001988,2]
[359647901,1746216645615,-878.0,0.0001988,2]
[359647902,1746216645625,-4006.0,0.0001988,2]
[359647903,1746216645635,-245.714,0.00019881,2]
[359647904,1746216645646,-150.0,0.00019882,2]
[359647905,1746216645656,-150.0,0.00019892,2]
[359647906,1746216645666,-165.7836071,0.00019894,2]
[359647907,1746216645676,-165.78360708,0.00019896,2]
[359647908,1746216645685,-165.78360708,0.00019898,2]
[359647909,1746216645695,-182.45137215,0.000199,2]
[359647910,1746216645705,-453.18113303,0.000199,2]
[359647911,1746216645715,-593.72698697,0.000199,2]
[359647912,1746216645726,-165.78360708,0.000199,2]
[359647913,1746216645736,-1530.19154769,0.000199,2]
[359647914,1746216645746,-1329.95598886,0.000199,2]
[359647915,1746216645756,-171.70756229,0.000199,3]
[359647916,1746216645767,-2743.91594593,0.000199,2]
[359647917,1746216645776,-150.0,0.00019904,2]
[359647918,1746216645786,-150.0,0.00019914,2]
[359647919,1746216645797,-150.0,0.00019922,2]
[359647920,1746216645807,-150.0,0.00019924,2]
[359647921,1746216645817,-150.0,0.00019926,2]
[359647922,1746216645827,-150.0,0.00019938,2]
[359647923,1746216645838,-151.0,0.00019943,2]
[359647924,1746216645848,-924.0,0.00019949,2]
[359647925,1746216645858,-1391.397,0.00019949,2]
[359647926,1746216645868,-1231.202,0.00019949,2]
[359647927,1746216645879,-797.0,0.00019949,2]
[359647928,1746216645889,-914.0,0.00019949,2]
[359647929,1746216645899,-550.0,0.00019949,2]
[359647930,1746216645910,-1449.0,0.00019949,2]
[359647931,1746216645919,-581.0,0.00019949,2]
[359647932,1746216645930,-2071.0,0.00019949,2]
[359647933,1746216645940,-207.4,0.00019953,2]
[359647934,1746216645951,-151.0,0.00019954,2]
[359647935,1746216645961,-151.0,0.00019954,2]
[359647936,1746216645971,-668.65185757,0.00019954,2]
[359647937,1746216645982,-151.0,0.00019954,2]
[359647938,1746216645991,-150.0,0.00019956,2]
[359647939,1746216646002,-150.0,0.0001997,2]
[359647940,1746216646011,-150.0,0.00019971,2]
[359647941,1746216646021,-500.0,0.00019972,2]
[359647942,1746216646031,-500.0,0.00019973,2]
[359647943,1746216646041,-500.0,0.00019973,2]
[359647944,1746216646051,-24257.0,0.00019973,2]
[359647945,1746216646061,-920.0,0.00019973,2]
[359647946,1746216646071,-162.40954813,0.00019973,2]
[359647947,1746216646081,-501.47327578,0.00019973,2]
[359647948,1746216646091,-500.0,0.00019973,2]
[359647949,1746216646101,-501.66333751,0.00019973,2]
[359647950,1746216646110,-500.0,0.00019973,2]
[359647951,1746216646120,-606.40594085,0.00019973,2]
[359647952,1746216646131,-500.0,0.00019973,2]
[359647953,1746216646141,-505.11388319,0.00019973,2]
[359647954,1746216646152,-500.0,0.00019973,2]
[359647955,1746216646162,-500.0,0.00019973,2]
[359647956,1746216646174,-517.08214642,0.00019973,2]
[359647957,1746216646185,-500.0,0.00019973,2]
[359647958,1746216646195,-500.0,0.00019973,2]
[359647959,1746216646205,-160.1305096,0.00019973,2]
[359647960,1746216646216,-500.0,0.00019973,2]
[359647961,1746216646227,-500.0,0.00019973,2]
[359647962,1746216646237,-501.74607688,0.00019973,2]
[359647963,1746216646247,-243.25265261,0.00019973,2]
[359647964,1746216646258,-302.52572163,0.00019973,2]
[359647965,1746216646268,-152.56461415,0.00019973,2]
[359647966,1746216646279,-538.7932649,0.00019973,2]
[359647967,1746216646289,-500.0,0.00019973,2]
[359647968,1746216646299,-500.0,0.00019973,2]
[359647969,1746216646310,-150.0,0.00019974,2]
[359647970,1746216646321,-150.0,0.00019982,2]
[359647971,1746216646331,-1074.92705239,0.00019984,2]
[359647972,1746216646342,-150.0,0.00019985,2]
[359647973,1746216646353,-500.0,0.00019985,2]
[359647974,1746216646363,-1722.0,0.00019986,2]
[359647975,1746216646373,-33551.3648008,0.00019986,2]
[359647976,1746216646384,-13194.8352932,0.00019986,2]
[359647977,1746216646395,-344256.9798824,0.00019986,2]
[359647978,1746216646406,-1074.92705239,0.0001999,2]
[359647979,1746216646419,-1074.92705239,0.0001999,2]
[359647980,1746216646430,-632.544365,0.00019993,2]
[359647981,1746216646440,-450.0,0.00019993,2]
[359647982,1746216646451,-150.0,0.00019993,2]
[359647983,1746216646461,-894.130531,0.00019993,2]
[359647984,1746216646473,-463.43,0.00019993,2]
[359647985,1746216646484,-450.0,0.00019993,2]
[359647986,1746216646495,-450.0,0.00019993,2]
[359647987,1746216646505,-450.0,0.00019993,2]
[359647988,1746216646516,-8210.44,0.00019993,2]
[359647989,1746216646526,-450.0,0.00019993,2]
[359647990,1746216646537,-450.0,0.00019993,2]
[359647991,1746216646547,-450.0,0.00019993,2]
[359647992,1746216646558,-450.0,0.00019993,2]
[359647993,1746216646569,-450.0,0.00019993,2]
[359647994,1746216646579,-450.0,0.00019993,2]
[359647995,1746216646590,-450.0,0.00019993,2]
[359647996,1746216646600,-186.59084408,0.00019993,2]
[359647997,1746216646611,-450.0,0.00019993,2]
[359647998,1746216646621,-458.3,0.00019993,2]
[359647999,1746216646631,-450.0,0.00019993,2]
[359648000,1746216646642,-450.0,0.00019993,2]
[359648001,1746216646652,-553.69,0.00019993,2]
[359648002,1746216646662,-450.0,0.00019993,2]
[359648003,1746216646673,-450.0,0.00019993,2]
[359648004,1746216646683,-450.0,0.00019993,2]
[359648005,1746216646694,-450.0,0.00019993,2]
[359648006,1746216646704,-450.0,0.00019993,2]
[359648007,1746216646714,-2098.57,0.00019993,2]
[359648008,1746216646724,-450.0,0.00019993,2]
[359648009,1746216646734,-489.03,0.00019993,2]
[359648010,1746216646744,-522.33,0.00019993,2]
[359648011,1746216646754,-1068.42,0.00019993,2]
[359648012,1746216646764,-1171.41,0.00019993,2]
[359648013,1746216646775,-482.84,0.00019993,2]
[359648014,1746216646785,-450.0,0.00019993,2]
[359648015,1746216646796,-450.0,0.00019993,2]
[359648016,1746216646806,-450.0,0.00019993,2]
[359648017,1746216646816,-450.0,0.00019993,2]
[359648018,1746216646827,-450.0,0.00019993,2]
[359648019,1746216646837,-450.0,0.00019993,2]
[359648020,1746216646848,-550.89,0.00019993,2]
[359648021,1746216646859,-450.0,0.00019993,2]
[359648022,1746216646870,-1080.47,0.00019993,2]
[359648023,1746216646881,-450.0,0.00019993,2]
[359648024,1746216646891,-450.0,0.00019994,2]
[359648025,1746216646901,-246.53420213,0.00019994,2]
[359648026,1746216646911,-450.0,0.00019994,2]
[359648027,1746216646922,-450.0,0.00019994,2]
[359648028,1746216646932,-450.0,0.00019994,2]
[359648029,1746216646942,-450.0,0.00019994,2]
[359648030,1746216646956,-450.0,0.00019994,2]
[359648031,1746216646967,-450.0,0.00019994,2]
[359648032,1746216646977,-450.0,0.00019994,2]
[359648033,1746216646987,-450.0,0.00019994,2]
[359648034,1746216646998,-450.0,0.00019994,2]
[359648035,1746216647009,-949.12,0.00019994,2]
[359648036,1746216647020,-450.0,0.00019994,2]
[359648037,1746216647030,-450.0,0.00019994,2]
[359648038,1746216647041,-450.0,0.00019994,2]
[359648039,1746216647052,-450.0,0.00019994,2]
[359648040,1746216647062,-450.0,0.00019994,2]
[359648041,1746216647072,-450.0,0.00019994,2]
[359648042,1746216647083,-250.0,0.00019994,2]
[359648043,1746216647142,-450.0,0.00019994,2]
[359648044,1746216647152,-450.0,0.00019994,2]
[359648045,1746216647162,-450.0,0.00019994,2]
[359648046,1746216647172,-566.26,0.00019994,2]
[359648047,1746216647182,-450.0,0.00019994,2]
[359648048,1746216647192,-450.0,0.00019994,2]
[359648049,1746216647201,-450.0,0.00019994,2]
[359648050,1746216647211,-450.0,0.00019994,2]
[359648051,1746216647220,-450.0,0.00019994,2]
[359648052,1746216647230,-690.18,0.00019994,2]
[359648053,1746216647239,-298.56431226,0.00019994,2]
[359648054,1746216647249,-450.0,0.00019994,2]
[359648055,1746216647258,-450.0,0.00019994,2]
[359648056,1746216647268,-450.0,0.00019994,2]
[359648057,1746216647277,-450.0,0.00019994,2]
[359648058,1746216647288,-450.0,0.00019994,2]
[359648059,1746216647298,-482.31,0.00019994,2]
[359648060,1746216647307,-450.0,0.00019994,2]
[359648061,1746216647317,-450.0,0.00019994,2]
[359648062,1746216647327,-450.0,0.00019994,2]
[359648063,1746216647337,-450.0,0.00019994,2]
[359648064,1746216647347,-450.0,0.00019994,2]
[359648065,1746216647357,-486.82,0.00019994,2]
[359648066,1746216647367,-955.3,0.00019994,2]
[359648067,1746216647376,-776.95,0.00019994,2]
[359648068,1746216647386,-450.0,0.00019994,2]
[359648069,1746216647396,-450.0,0.00019994,2]
[359648070,1746216647407,-466.54,0.00019994,2]
[359648071,1746216647420,-554.71,0.00019994,2]
[359648072,1746216647430,-450.0,0.00019994,2]
[359648073,1746216647440,-567.43,0.00019994,2]
[359648074,1746216647451,-450.0,0.00019994,2]
[359648075,1746216647460,-450.0,0.00019994,2]
[359648076,1746216647470,-450.0,0.00019994,2]
[359648077,1746216647482,-450.0,0.00019994,2]
[359648078,1746216647492,-450.0,0.00019994,2]
[359648079,1746216647502,-450.0,0.00019994,2]
[359648080,1746216647512,-450.0,0.00019994,2]
[359648081,1746216647521,-450.0,0.00019994,2]
[359648082,1746216647530,-450.0,0.00019994,2]
[359648083,1746216647541,-660.43,0.00019994,2]
[359648084,1746216647551,-450.0,0.00019994,2]
[359648085,1746216647560,-450.0,0.00019994,2]
[359648086,1746216647570,-450.0,0.00019994,2]
[359648087,1746216647580,-450.0,0.00019994,2]
[359648088,1746216647589,-450.0,0.00019994,2]
[359648089,1746216647599,-450.0,0.00019994,2]
[359648090,1746216647608,-450.0,0.00019994,2]
[359648091,1746216647618,-450.0,0.00019994,2]
[359648092,1746216647628,-450.0,0.00019994,2]
[359648093,1746216647637,-450.0,0.00019994,2]
[359648094,1746216647646,-481.19109644,0.00019994,2]
[359648095,1746216647656,-733.13,0.00019994,2]
[359648096,1746216647666,-450.0,0.00019994,2]
[359648097,1746216647675,-1178.86,0.00019994,2]
[359648098,1746216647685,-511.12,0.00019994,2]
[359648099,1746216647695,-450.0,0.00019994,2]
[359648100,1746216647705,-450.0,0.00019994,2]
[359648101,1746216647715,-450.0,0.00019994,2]
[359648102,1746216648007,-450.0,0.00019994,2]
[359648103,1746216648017,-450.0,0.00019994,2]
[359648104,1746216648027,-450.0,0.00019994,2]
[359648105,1746216648036,-450.0,0.00019994,2]
[359648106,1746216648046,-450.0,0.00019994,2]
[359648107,1746216648056,-450.0,0.00019994,2]
[359648108,1746216648066,-450.0,0.00019994,2]
[359648109,1746216648076,-450.0,0.00019994,2]
[359648110,1746216648086,-450.0,0.00019994,2]
[359648111,1746216648096,-629.36,0.00019994,2]
[359648112,1746216648106,-450.0,0.00019994,2]
[359648113,1746216648116,-450.0,0.00019994,2]
[359648114,1746216648126,-643.25,0.00019994,2]
[359648115,1746216648135,-450.0,0.00019994,2]
[359648116,1746216648145,-450.0,0.00019994,2]
[359648117,1746216648155,-450.0,0.00019994,2]
[359648118,1746216648165,-1616.69,0.00019994,2]
[359648119,1746216648175,-450.0,0.00019994,2]
[359648120,1746216648184,-450.0,0.00019994,2]
[359648121,1746216648194,-450.0,0.00019994,2]
[359648122,1746216648206,-450.0,0.00019994,2]
[359648123,1746216648216,-450.0,0.00019994,2]
[359648124,1746216648226,-477.67,0.00019994,2]
[359648125,1746216648236,-450.0,0.00019994,2]
[359648126,1746216648245,-798.07,0.00019994,2]
[359648127,1746216648255,-450.0,0.00019994,2]
[359648128,1746216648265,-450.0,0.00019994,2]
[359648129,1746216648275,-450.0,0.00019994,2]
[359648130,1746216648285,-450.0,0.00019994,2]
[359648131,1746216648295,-450.0,0.00019994,2]
[359648132,1746216648304,-610.67,0.00019994,2]
[359648133,1746216648314,-450.0,0.00019994,2]
[359648134,1746216648324,-450.0,0.00019994,2]
[359648135,1746216648334,-450.0,0.00019994,2]
[359648136,1746216648344,-564.99,0.00019994,2]
[359648137,1746216648354,-450.0,0.00019994,2]
[359648138,1746216648364,-450.0,0.00019994,2]
[359648139,1746216648374,-608.33,0.00019994,2]
[359648140,1746216648383,-450.0,0.00019994,2]
[359648141,1746216648393,-450.0,0.00019994,2]
[359648142,1746216648402,-450.0,0.00019994,2]
[359648143,1746216648416,-450.0,0.00019994,2]
[359648144,1746216648427,-450.0,0.00019994,2]
[359648145,1746216648437,-450.0,0.00019994,2]
[359648146,1746216648447,-781.98,0.00019994,2]
[359648147,1746216648456,-450.0,0.00019994,2]
[359648148,1746216648466,-450.0,0.00019994,2]
[359648149,1746216648476,-450.0,0.00019994,2]
[359648150,1746216648485,-450.0,0.00019994,2]
[359648151,1746216648495,-655.08,0.00019994,2]
[359648152,1746216648505,-450.0,0.00019994,2]
[359648153,1746216648514,-791.52,0.00019994,2]
[359648154,1746216648523,-450.0,0.00019994,2]
[359648155,1746216648533,-1908.79,0.00019994,2]
[359648156,1746216648543,-450.0,0.00019994,2]
[359648157,1746216648553,-781.37,0.00019994,2]
[359648158,1746216648563,-450.0,0.00019994,2]
[359648159,1746216648573,-655.32,0.00019994,2]
[359648160,1746216648583,-450.0,0.00019994,2]
[359648161,1746216648592,-450.0,0.00019994,2]
[359648162,1746216648602,-552.46,0.00019994,2]
[359648163,1746216648611,-450.0,0.00019994,2]
[359648164,1746216648622,-698.66,0.00019994,2]
[359648165,1746216648631,-1726.33,0.00019994,2]
[359648166,1746216648640,-450.0,0.00019994,2]
[359648167,1746216648650,-525.24,0.00019994,2]
[359648168,1746216648659,-845.97,0.00019994,2]
[359648169,1746216648668,-571.99,0.00019994,2]
[359648170,1746216648677,-450.0,0.00019994,2]
[359648171,1746216648687,-1234.52,0.00019994,2]
[359648172,1746216648696,-450.0,0.00019994,2]
[359648173,1746216648706,-450.0,0.00019994,2]
[359648174,1746216648716,-380.38508656,0.00019994,2]
[359648175,1746216648726,-450.0,0.00019994,2]
[359648176,1746216648736,-808.68,0.00019994,2]
[359648177,1746216648745,-450.0,0.00019994,2]
[359648178,1746216648755,-450.0,0.00019994,2]
[359648179,1746216648764,-892.53,0.00019994,2]
[359648180,1746216648774,-450.0,0.00019994,2]
[359648181,1746216648784,-450.0,0.00019994,2]
[359648182,1746216648794,-450.0,0.00019994,2]
[359648183,1746216648803,-450.0,0.00019994,2]
[359648184,1746216648813,-450.0,0.00019994,2]
[359648185,1746216648823,-450.0,0.00019994,2]
[359648186,1746216648832,-781.54,0.00019994,2]
[359648187,1746216648842,-450.0,0.00019994,2]
[359648188,1746216648851,-450.0,0.00019994,2]
[359648189,1746216648861,-450.0,0.00019994,2]
[359648190,1746216648871,-450.0,0.00019994,2]
[359648191,1746216648880,-3973.35,0.00019994,2]
[359648192,1746216648890,-450.0,0.00019994,2]
[359648193,1746216648900,-450.0,0.00019994,2]
[359648194,1746216648910,-450.0,0.00019994,2]
[359648195,1746216648919,-450.0,0.00019994,2]
[359648196,1746216648929,-679.73,0.00019994,2]
[359648197,1746216648939,-987.32,0.00019994,2]
[359648198,1746216648949,-566.26,0.00019994,2]
[359648199,1746216648959,-4582.09,0.00019994,2]
[359648200,1746216648969,-830.82,0.00019994,2]
[359648201,1746216648979,-450.0,0.00019994,2]
[359648202,1746216648989,-450.0,0.00019994,2]
[359648203,1746216648999,-1042.83,0.00019994,2]
[359648204,1746216649009,-1011.96,0.00019994,2]
[359648205,1746216649019,-4207.35,0.00019994,2]
[359648206,1746216649029,-450.0,0.00019994,2]
[359648207,1746216649039,-6326.37,0.00019994,2]
[359648208,1746216649050,-450.0,0.00019994,2]
[359648209,1746216649060,-450.0,0.00019994,2]
[359648210,1746216649069,-450.0,0.00019994,2]
[359648211,1746216649079,-450.0,0.00019994,2]
[359648212,1746216649089,-508.53,0.00019994,2]
[359648213,1746216649099,-491.33,0.00019994,2]
[359648214,1746216649109,-450.0,0.00019994,2]
[359648215,1746216649119,-1274.2,0.00019994,2]
[359648216,1746216649129,-450.0,0.00019994,2]
[359648217,1746216649138,-450.0,0.00019994,2]
[359648218,1746216649148,-450.0,0.00019994,2]
[359648219,1746216649157,-490.67,0.00019994,2]
[359648220,1746216649167,-450.0,0.00019994,2]
[359648221,1746216649177,-458.48,0.00019994,2]
[359648222,1746216649187,-497.76,0.00019994,2]
[359648223,1746216649196,-450.0,0.00019994,2]
[359648224,1746216649206,-492.61,0.00019994,2]
[359648225,1746216649216,-524.4,0.00019994,2]
[359648226,1746216649226,-450.0,0.00019994,2]
[359648227,1746216649237,-450.0,0.00019994,2]
[359648228,1746216649247,-616.57,0.00019994,2]
[359648229,1746216649256,-472.65,0.00019994,2]
[359648230,1746216649267,-4522.28,0.00019994,2]
[359648231,1746216649278,-1011.25,0.00019994,2]
[359648232,1746216649288,-1679.64,0.00019994,2]
[359648233,1746216649299,-450.0,0.00019994,2]
[359648234,1746216649309,-544.82,0.00019994,2]
[359648235,1746216649319,-450.0,0.00019994,2]
[359648236,1746216649329,-92675.97,0.00019994,2]
[359648237,1746216649339,-450.0,0.00019994,2]
[359648238,1746216649349,-450.0,0.00019994,2]
[359648239,1746216649359,-450.0,0.00019994,2]
[359648240,1746216649368,-450.0,0.00019994,2]
[359648241,1746216649378,-692.54,0.00019994,2]
[359648242,1746216649387,-640.27,0.00019994,2]
[359648243,1746216649397,-450.0,0.00019994,2]
[359648244,1746216649407,-482.91,0.00019994,2]
[359648245,1746216649420,-487.74,0.00019994,2]
[359648246,1746216649430,-624.95,0.00019994,2]
[359648247,1746216649440,-450.0,0.00019994,2]
[359648248,1746216649451,-5388.74,0.00019994,2]
[359648249,1746216649461,-450.0,0.00019994,2]
[359648250,1746216649471,-113908.83,0.00019994,2]
[359648251,1746216649481,-724.04,0.00019994,2]
[359648252,1746216649492,-30037.28,0.00019994,2]
[359648253,1746216649501,-450.0,0.00019994,2]
[359648254,1746216649511,-576.18,0.00019994,2]
[359648255,1746216649521,-562.69,0.00019994,2]
[359648256,1746216649531,-2369.61,0.00019994,2]
[359648257,1746216649540,-573.02,0.00019994,2]
[359648258,1746216649550,-1950.51,0.00019994,2]
[359648259,1746216649560,-450.0,0.00019994,2]
[359648260,1746216649570,-450.0,0.00019994,2]
[359648261,1746216649579,-450.0,0.00019994,2]
[359648262,1746216649589,-450.0,0.00019994,2]
[359648263,1746216649598,-450.0,0.00019994,2]
[359648264,1746216649608,-450.0,0.00019994,2]
[359648265,1746216649618,-450.0,0.00019994,2]
[359648266,1746216649629,-16828.51,0.00019994,2]
[359648267,1746216649639,-450.0,0.00019994,2]
[359648268,1746216649649,-450.0,0.00019994,2]
[359648269,1746216649658,-516.0,0.00019994,2]
[359648270,1746216649668,-471.53,0.00019994,2]
[359648271,1746216649679,-450.0,0.00019994,2]
[359648272,1746216649688,-537.23,0.00019994,2]
[359648273,1746216649698,-471.29,0.00019994,2]
[359648274,1746216649707,-1268.12,0.00019994,2]
[359648275,1746216649717,-450.0,0.00019994,2]
[359648276,1746216649727,-994.06,0.00019994,2]
[359648277,1746216649736,-459.57,0.00019994,2]
[359648278,1746216649746,-562.81,0.00019994,2]
[359648279,1746216649756,-450.0,0.00019994,2]
[359648280,1746216649766,-450.0,0.00019994,2]
[359648281,1746216649775,-450.0,0.00019994,2]
[359648282,1746216649786,-450.0,0.00019994,2]
[359648283,1746216649796,-450.0,0.00019994,2]
[359648284,1746216649806,-832.02,0.00019994,2]
[359648285,1746216649816,-1875.44,0.00019994,2]